Cogmind - Beta 13 @@@ ROGUE MODE // 2024.06.30 @ 21:51:49 Player: Voidling Result: Self-destructed Performance ------------- Evolutions (1) 500 Regions Visited (4) 800 Robots Destroyed (15) 75 Value Destroyed (222) 222 Prototype IDs (1) 20 Alien Tech Used (0) 0 Bonus (0) 0 TOTAL SCORE: 1617 Bonus ------- None Cogmind --------- Core Integrity 367/400 Matter 16/300 Energy 125/125 System Corruption 0% Temperature Cool (15) Movement Flying (34) Location -9/Storage Parts ------- > --- POWER (1) -------- Light Ion Engine > --- PROPULSION (4) --- Flight Unit Flight Unit Flight Unit > --- UTILITY (2) ------ (None) > --- WEAPON (2) ------- Grenade Launcher Grenade Launcher > --- INVENTORY (5) ---- Flight Unit Shield Generator Mining Laser Peak State ------------ > --- POWER ------------ Light Ion Engine > --- PROPULSION ------- Flight Unit Flight Unit Flight Unit Flight Unit > --- UTILITY ---------- Heat Sink Experimental Sensor Array > --- WEAPON ----------- Assault Rifle Assault Rifle > --- INVENTORY -------- Flight Unit Light Assault Rifle Grenade Launcher Grenade Launcher Mining Laser [Rating: 17] Favorites ----------- Power Ion Engine Engine Ion Engine Propulsion Aluminum Leg Leg Aluminum Leg Flight Unit Flight Unit Utility Large Storage Unit Device Heat Sink Storage Large Storage Unit Weapon Assault Rifle Ballistic Gun Assault Rifle Launcher Grenade Launcher Build | -11 -10 -10 -9 -9 ------- Run | Yrd Mat Min Mat Sto Slots Evolved 2 | . . . 2 . Power . | . . . . . Propulsion 2 | . . . 2 . Utility . | . . . . . Weapon . | . . . . . Parts Attached 21 | 6 1 2 5 7 Power 2 | 1 . 1 . . Engine 2 | 1 . 1 . . Core . | . . . . . Reactor . | . . . . . Propulsion 11 | 2 . . 4 5 Treads . | . . . . . Leg 2 | 2 . . . . Wheel . | . . . . . Hover . | . . . . . Flight 9 | . . . 4 5 Utility 4 | 1 1 1 1 . Device 2 | . . 1 1 . Storage 2 | 1 1 . . . Processor . | . . . . . Hackware . | . . . . . Protection . | . . . . . Artifact . | . . . . . Weapon 4 | 2 . . . 2 Energy Gun . | . . . . . Energy Cannon . | . . . . . Ballistic Gun 2 | 2 . . . . Ballistic Cannon . | . . . . . Launcher 2 | . . . . 2 Special Weapon . | . . . . . Impact Weapon . | . . . . . Slashing Weapon . | . . . . . Piercing Weapon . | . . . . . Special Melee Weapon . | . . . . . Unidentified Prototypes 1 | . . . 1 . Parts Lost 6 | . . 1 . 5 Power 1 | . . 1 . . Propulsion 1 | . . . . 1 Utility 2 | . . . . 2 Weapon 2 | . . . . 2 Highest Loss Streak 5 | . . 1 . 5 To Critical Strikes . | . . . . . Average Slot Usage (%) 85 | . 85 85 92 90 Engine 4 | . 14 . 11 11 Leg 25 | . 28 28 3 . Flight 3 | . . . 33 36 Device 10 | . . 13 18 20 Storage 12 | . 14 14 3 . Ballistic Gun 27 | . 28 28 22 18 Naked Turns . | . . . . . Heaviest Build 29 | 14 29 28 9 9 Greatest Support 20 | 20 20 20 16 16 Greatest Overweight (x) 1 | . 1 1 . 1 Average Overweight (x) . | . . 1 . . Largest Inventory Capacity 15 | 8 15 15 15 5 Average Capacity 13 | 6 13 15 7 5 Most Carried 13 | 5 10 13 12 5 Average Carried 9 | 2 5 12 6 4 Final Capacity 15 | 8 15 15 5 5 Final Carried 12 | 2 10 12 5 3 Class Distribution -------------------- 90% | Mutant 9% | Scavenger-Sprinter Dominant Class ---------------- Mutant | -10/Materials Mutant | -10/Mines Mutant | -9/Materials Scavenger-Sprinter | -9/Storage Resources | -11 -10 -10 -9 -9 ----------- Run | Yrd Mat Min Mat Sto Matter Collected 347 | 242 42 63 . . Remotely . | . . . . . Salvage Created 292 | . 119 125 . 48 Parts 32 | . 11 9 . 12 Haulers Intercepted . | . . . . . Recyclers Shooed . | . . . . . Parts Field Recycled . | . . . . . Retrieved Matter . | . . . . . Parts Self-Destructed . | . . . . . Prevented . | . . . . . Kills | -11 -10 -10 -9 -9 ------- Run | Yrd Mat Min Mat Sto Combat Hostiles Destroyed 13 | . 6 4 . 3 Guns 10 | . 6 4 . . AOE 3 | . . . . 3 Classes Destroyed 4 | . 2 1 . 1 Builder 1 | . . . . 1 Watcher 1 | . 1 . . . Swarmer 11 | . 6 2 . 3 Grunt 2 | . . 2 . . Best Kill Streak 3 | . 3 2 . 3 Combat Bots Only 3 | . 3 2 . 3 Max Kills in Single Turn 3 | . 2 1 . 3 Gunslinging 1 | . 1 . . . Exploded 3 | . . . . 3 Melee . | . . . . . Uniques/NPCs Destroyed . | . . . . . Combat | -11 -10 -10 -9 -9 -------- Run | Yrd Mat Min Mat Sto Hostile Shots Fired 114 | . 27 46 . 41 Missed 42 | . 9 14 . 19 Damage Taken 762 | . 137 345 . 280 Core 117 | . 33 51 . 33 Absorbed by Shields . | . . . . . Core Remaining (%) 83 | 100 . 66 . . Volleys Fired 40 | . 10 21 . 9 Largest 2 | . 2 2 . 2 Hottest 60 | . 40 40 . 60 Shots Fired 79 | . 20 42 . 17 Gun 77 | . 20 42 . 15 Cannon . | . . . . . Launcher 2 | . . . . 2 Special . | . . . . . Kinetic 77 | . 20 42 . 15 Thermal . | . . . . . Explosive 2 | . . . . 2 Electromagnetic . | . . . . . Robot Hit Streak 9 | . 4 9 . 2 Robot Miss Streak 5 | . 5 3 . 4 Penetration Max . | . . . . . Secondary Targets 4 | . 3 1 . . Max Gunslinging Chain 1 | . 1 1 . . Shots Hit Robots 44 | . 10 28 . 6 Core Hits 20 | . 7 8 . 5 Critical Kills . | . . . . . Critical Parts Destroyed . | . . . . . Critical Strikes . | . . . . . Melee Attacks . | . . . . . Impact . | . . . . . Slashing . | . . . . . Piercing . | . . . . . Sneak Attacks . | . . . . . Combat Hostiles . | . . . . . Follow-up Attacks . | . . . . . Damage Inflicted 752 | . 122 355 . 275 Guns 593 | . 122 355 . 116 Cannons . | . . . . . Explosions 159 | . . . . 159 Melee . | . . . . . Ramming . | . . . . . Kinetic 593 | . 122 355 . 116 Thermal . | . . . . . Explosive 159 | . . . . 159 Electromagnetic . | . . . . . Impact . | . . . . . Slashing . | . . . . . Piercing . | . . . . . Highest Corruption . | . . . . . Average Corruption . | . . . . . Corruption Purged . | . . . . . Corruption Blocked . | . . . . . Overload Shots . | . . . . . Overflow Damage . | . . . . . Projectiles . | . . . . . Explosions . | . . . . . Melee . | . . . . . Knockbacks . | . . . . . Impact . | . . . . . Kinetic . | . . . . . Secondary . | . . . . . Self-Inflicted Damage . | . . . . . Shots . | . . . . . Rammed . | . . . . . Targets Rammed . | . . . . . Kicked . | . . . . . Crushed . | . . . . . Highest Temperature 15 | . . 8 . 15 Average Temperature 4 | . . 2 . 15 Received Heat Transfer 183 | . . 99 . 84 Siege Activations . | . . . . . Robots Corrupted . | . . . . . Combat Hostiles . | . . . . . Parts Fried . | . . . . . Impact Corruptions . | . . . . . Robots Melted . | . . . . . Combat Hostiles . | . . . . . Parts Melted . | . . . . . Heat Transferred . | . . . . . Parts Sabotaged . | . . . . . Parts Stolen . | . . . . . Parts Stripped . | . . . . . Power Chain Reactions . | . . . . . Alert | -11 -10 -10 -9 -9 ------- Run | Yrd Mat Min Mat Sto Peak Influence 177 | . 177 109 19 95 Initial 69 | . . 69 19 7 Average 64 | . 91 68 19 12 Maximum Alert Level . | . . . . . Low Security (%) 100 | 100 100 100 100 100 Level 1 . | . . . . . Level 2 . | . . . . . Level 3 . | . . . . . Level 4 . | . . . . . Level 5 . | . . . . . High Security . | . . . . . Max Security . | . . . . . Squads Dispatched . | . . . . . Investigation . | . . . . . Extermination . | . . . . . Reinforcement . | . . . . . Assault . | . . . . . Garrison . | . . . . . Intercept . | . . . . . Searches Triggered . | . . . . . Construction Impeded . | . . . . . Haulers Reinforced . | . . . . . Active Scanning Responses . | . . . . . Cargo Convoy Interrupts . | . . . . . Stealth | -11 -10 -10 -9 -9 --------- Run | Yrd Mat Min Mat Sto Distress Signals 2 | . 1 . . 1 Communications Jammed . | . . . . . Distress Signals . | . . . . . Times Spotted 21 | . 7 5 . 9 Peak Tracking Total 9 | . 3 3 . 9 Tactical Retreats 1 | . 1 . . . Traps | -11 -10 -10 -9 -9 ------- Run | Yrd Mat Min Mat Sto Traps Triggered . | . . . . . Indirectly . | . . . . . Trap Hack Attempts . | . . . . . Triggered . | . . . . . Disarmed . | . . . . . Reprogrammed . | . . . . . Reused . | . . . . . Traps Extracted . | . . . . . Installed . | . . . . . Triggered . | . . . . . Machines | -11 -10 -10 -9 -9 ---------- Run | Yrd Mat Min Mat Sto Machines Disabled 1 | . . . . 1 Max in Single Turn 1 | . . . . 1 Machines Repaired . | . . . . . Machines Dismantled . | . . . . . Machines Sabotaged . | . . . . . Overloaded Fab Kills . | . . . . . Hacking | -11 -10 -10 -9 -9 --------- Run | Yrd Mat Min Mat Sto Machines Accessed 2 | . 2 . . . Terminals 2 | . 2 . . . Fabricators . | . . . . . Repair Stations . | . . . . . Recycling Units . | . . . . . Scanalyzers . | . . . . . Garrison Access . | . . . . . Total Hacks 3 | . 3 . . . Successful . | . . . . . Failed 3 | . 3 . . . Catastrophic 2 | . 2 . . . Database Lockouts . | . . . . . Manual . | . . . . . Terminals 3 | . 3 . . . Fabricators . | . . . . . Repair Stations . | . . . . . Recycling Units . | . . . . . Scanalyzers . | . . . . . Garrison Access . | . . . . . Terminal Hacks . | . . . . . Fabricator Hacks . | . . . . . Repair Station Hacks . | . . . . . Recycling Unit Hacks . | . . . . . Scanalyzer . | . . . . . Garrison Access Hacks . | . . . . . Unauthorized Hacks . | . . . . . Terminals . | . . . . . Fabricators . | . . . . . Repair Stations . | . . . . . Recycling Units . | . . . . . Scanalyzers . | . . . . . Garrison Access . | . . . . . Data Cores Recovered . | . . . . . Used . | . . . . . Hacking Detections 2 | . 2 . . . Full Trace Events . | . . . . . Feedback Events . | . . . . . Feedback Blocked . | . . . . . Robot Schematics Acquired . | . . . . . Robots Built . | . . . . . Authchips . | . . . . . Time . | . . . . . Total Robot Build Rating . | . . . . . Part Schematics Acquired . | . . . . . Parts Built . | . . . . . Authchips . | . . . . . Time . | . . . . . Total Part Build Rating . | . . . . . Parts Repaired . | . . . . . Time . | . . . . . Parts Recycled . | . . . . . Recycled Matter . | . . . . . Retrieved Matter . | . . . . . Retrieved Components . | . . . . . Parts Scanalyzed . | . . . . . Part Schematics Acquired . | . . . . . Parts Damaged . | . . . . . Bothacking | -11 -10 -10 -9 -9 ------------ Run | Yrd Mat Min Mat Sto Used RIF Installer . | . . . . . Robots Hacked . | . . . . . Non-combat . | . . . . . Combat . | . . . . . Robot Hacks Applied . | . . . . . Relay Couplers Released . | . . . . . Fabnet Peak Effective % . | . . . . . Robots Rewired . | . . . . . Allies Hacked . | . . . . . Hacks Repelled . | . . . . . Allies | -11 -10 -10 -9 -9 -------- Run | Yrd Mat Min Mat Sto Total Allies . | . . . . . Largest Group . | . . . . . Highest-Rated Group . | . . . . . Highest-Rated Ally . | . . . . . Total Orders . | . . . . . Ally Attacks . | . . . . . Total Damage . | . . . . . Kills . | . . . . . Allies Corrupted . | . . . . . Allies Melted . | . . . . . Intel | -11 -10 -10 -9 -9 ------- Run | Yrd Mat Min Mat Sto Robot Analysis Total . | . . . . . Derelict Logs Recovered . | . . . . . Drone Launches . | . . . . . Drone Recoveries . | . . . . . Exploration | -11 -10 -10 -9 -9 ------------- Run | Yrd Mat Min Mat Sto Turns Passed 1000 | 61 212 634 27 66 Spaces Moved 533 | 50 106 270 44 63 Core 18 | 18 . . . . Treads . | . . . . . Legs 408 | 32 106 270 . . Wheels . | . . . . . Hover . | . . . . . Flight 107 | . . . 44 63 Fastest Speed 31 | 50 120 190 31 31 Average Speed 144 | 94 162 190 31 33 Slowest Speed 190 | 120 190 190 31 117 Overloaded Moves . | . . . . . Propulsion Burnouts . | . . . . . Robots Hopped 1 | . . . . 1 Cave-ins Triggered . | . . . . . Exploration Rate (%) 19 | 3 23 44 5 20 Regions Visited 4 Branch Regions 2 Pre-discovered Areas 1 | . . 1 . . Known Exits Taken . | . . . . . Unknown Exits Taken 4 | 1 1 1 1 . Scrap Searched . | . . . . . Spaces Dug . | . . . . . Terrain Destroyed 9 | . . . . 9 Melee . | . . . . . Projectile . | . . . . . AOE 9 | . . . . 9 Terrain Rammed . | . . . . . Walls Destroyed . | . . . . . Machines Disabled . | . . . . . Actions | -11 -10 -10 -9 -9 --------- Run | Yrd Mat Min Mat Sto Total 687 | 63 126 349 58 91 Wait 61 | . . 53 2 6 Move 527 | 49 105 269 43 61 Hop 1 | . . . . 1 Pick Up 23 | 8 9 4 1 1 Fast Attach 6 | . . . 1 5 Attach 12 | 6 . 2 2 2 Detach . | . . . . . Swap 3 | . 1 . 2 . Drop 14 | . 1 . 7 6 Fire 40 | . 10 21 . 9 Melee . | . . . . . Ram . | . . . . . Kick . | . . . . . Crush . | . . . . . Escape Stasis . | . . . . . Rewire . | . . . . . Trap . | . . . . . Miscellaneous . | . . . . . Route ------- -11/Scrapyard -10/Materials -10/Mines -9/Materials -9/Storage History --------- Turn | Location | Event 3 | -11/Scrapyard | Discovered new exit (range 15) 62 | -11/Scrapyard | Entered Materials 234 | -10/Materials | Discovered new exit (range 14) 274 | -10/Materials | Entered Mines 310 | -10/Mines | Build established: Mutant 364 | -10/Mines | Found a damaged Exp. Sensor Array with a note attached 368 | -10/Mines | Found Prototype Device 410 | -10/Mines | YI-UF0 nonchalantly dropped a Grenade Launcher on the ground 695 | -10/Mines | Learned location of Storage (-9) 864 | -10/Mines | Discovered new exit (range 9) 908 | -10/Mines | Entered Materials 908 | -9/Materials | Evolved 2 slots: Propulsion x2 917 | -9/Materials | Identified Exp. Sensor Array 920 | -9/Materials | Discovered new exit (range 13) 935 | -9/Materials | Entered Storage 1001 | -9/Storage | Self-destructed Last Messages --------------- Acquired Flight Unit. Dropped Flight Unit. Acquired Flight Unit. K-01 Serf collects debris. Dropped Flight Unit. Acquired Flight Unit. U-05 Engineer destroyed. R-06 Scavenger collects Wheel. R-06 Scavenger collects Terrain Scanner. R-06 Scavenger collects Terrain Scan Processor. Assault Rifle destroyed. Flight Unit destroyed. Exp. Sensor Array destroyed. Assault Rifle destroyed. R-06 Scavenger collects Lgt. Ion Engine. S-10 Pest destroyed. Terminal disabled. S-10 Pest destroyed. Heat Sink destroyed. [Achievement: Oops] Map ----- +----------------------------------------------------+ | ???????????????????????????????????????????????? | | ???????????????????????????????????????????????? | | ???????????????????????????????????????????????? | | ???????????????????????????????????????????????? | | ???????????????????????????????????????????????? | | ???????????????????????????????????????????????? | | ?????????????????????? ??????????????????????? | | ?????????????????????# ??????????????????????? | | ?????????????????????# ??????????????????????? | | ?????????????????????# ??????????????????????? | | ?????????????????????# ??????????????????????? | | ?????????????????????# #?????????????????????? | | ?????????????????????# a "?????????????????????? | | ?????????????????????+ rY?????????????????????? | | ?????????????????????# wY"?????????????????????? | | ?????????????????????# #?????????????????????? | | ??????????+??????????# g #?????????????????????? | | ?????????? #?????????#Y #?????????????????????? | | ?????????? #?????????# r#?????????????????????? | | ???????### #?????????# #?????????????????????? | | ???????# #?????????# #?????????????????????? | | ???????# /?????????# %#?????????????????????? | | ???????# #?????????# !#?????????????????????? | | ???????# #?????????# |#?????????????????????? | | ####???# #?????????# #?????????????????????? | | # [ ??# #?????????# @ #?????????????????????? | | #! ??# #?????????# #???########??????????? | | # ?# #????????# #?] #??????????? | | # ?# #????????# [[#??????????? | | # # ########## [m #??????????? | | # # = %#??????????? | | # / [ * [ #??????????? | | # ! # u #??????????? | | # !# ########## #??????????? | | # !?# #????????####### #??????????? | | # ?# #???????????????####+#####??????????? | | # ??# #??????????????????? #??????????????? | | # ??# #????????????????????#??????????????? | | ######## #???????????????????????????????????? | | # # ############+???????????????????????? | | # """ # ???????????????????????? | | # "Y" + #?????????????????????????? | | # # #?????????????????????????? | | # # ########+##?????????????????????????? | | #[! # #???????????????????????????????????? | | #[! # #???????????????????????????????????? | | #!% # #???????????????????????????????????? | | # # #???????????????????????????????????? | | # """ # #???????????????????????????????????? | | # """ # #???????????????????????????????????? | +----------------------------------------------------+ Best States ------------- Heat Dissipation 38 Energy Generation 10 Energy Capacity 250 Matter Stores 282 Matter Capacity 300 Sight Range 16 Robot Scan Range 20 Terrain Scan Density 10 Evasion (%) 63 Item Schematics ----------------- None Robot Schematics ------------------ None Fabricated ------------ Nothing Alien Tech Used ----------------- None Achievements -------------- Oops Challenges ------------ None Game ------ Seed SiegeTachyonMachine Manual? 0 Play Time 00:11:25 Cumulative 3.2 hours Start 2024.06.30 @ 21:42:27 End 2024.06.30 @ 21:51:49 Sessions 1 Manual Loads 0 Difficulty Rogue Special Mode None Game No. 10 Rogue 8 Adventurer 2 Explorer 0 Win Type - Total 0 Types 0/0/0/0/0/0/0/0/0 Lore% 3 Gallery% 8 Achievement% 10 Wizard Run 0 Options --------- Layout 1 ASCII 0 Keyboard 0 Movement Numpad Keybinds 0 Fullscreen 1 Font 24/Smallcaps Map View 50x35 Zoom Use 0% Tactical HUD 0 Map Filters NONE Filters NONE Steam 1 RUN: ed642f78-9acb-4cf5-afb3-6df5aeba718d